fUST/lending_fUST_20240224
["ID","MTS","AMOUNT","RATE_DAILY","PERIOD"]
[314969514,1708705847380,-1099.06,0.00019452,2]
[314969516,1708705847389,-500.0,0.00019452,2]
[314969518,1708705847399,-1566.47,0.00019452,2]
[314969520,1708705847408,-253.26044084,0.00019452,2]
[314969522,1708705847416,-431.52365943,0.00019452,2]
[314969524,1708705847426,-1700.13,0.00019452,2]
[314969526,1708705847435,-1134.34,0.00019452,2]
[314969528,1708705847445,-1357.98,0.00019452,2]
[314969530,1708705847455,-500.0,0.00019452,2]
[314969532,1708705847464,-500.0,0.00019452,2]
[314969534,1708705847473,-1233.84,0.00019452,2]
[314969536,1708705847482,-500.0,0.00019452,2]
[314969538,1708705847492,-500.0,0.00019452,2]
[314969540,1708705847500,-500.0,0.00019452,2]
[314969541,1708705847509,-1264.71,0.00019452,2]
[314969543,1708705847519,-13247.14,0.00019452,2]
[314969545,1708705847529,-500.0,0.00019452,2]
[314969547,1708705847538,-7767.57,0.00019452,2]
[314969549,1708705847547,-500.0,0.00019452,2]
[314969551,1708705847557,-500.0,0.00019452,2]
[314969553,1708705847565,-1605.41924338,0.00019452,2]
[314969555,1708705847577,-45.06075662,0.00019452,2]
[314969557,1708705847586,-907.36541626,0.00019452,2]
[314969559,1708705847597,-1323.11458374,0.00019452,2]
[314969561,1708705847606,-698.74,0.00019452,2]
[314969563,1708705847615,-1000.0,0.0001946,2]
[314969565,1708705847624,-1000.0,0.00019512,2]
[314969567,1708705847633,-1000.0,0.00019546,2]
[314969569,1708705847642,-1000.0,0.0001955,2]
[314969571,1708705847652,-580.0,0.000196,2]
[314969573,1708705847661,-166.666666,0.00019627,2]
[314969575,1708705847670,-1000.0,0.00019688,2]
[314969576,1708705847679,-300.0,0.00019717,2]
[314969578,1708705847689,-500.0,0.00019726,2]
[314969580,1708705847698,-656.92,0.00019726,2]
[314969582,1708705847709,-914.55875025,0.00019726,2]
[314970882,1708707037857,-639.93763963,0.00018486,2]
[314970883,1708707037867,-1300.18972511,0.00018487,2]
[314970884,1708707037876,-419.05788732,0.000185,2]
[314970885,1708707037888,-1415.51628819,0.000185,2]
[314970886,1708707037897,-319.7701699,0.000189,2]
[314970887,1708707037906,-175.8434755,0.00019078,2]
[314970888,1708707037916,-276.4,0.00019168,3]
[314970889,1708707037925,-829.23,0.00019168,3]
[314970890,1708707037935,-500.0,0.00019178,2]
[314970891,1708707037944,-500.0,0.00019178,2]
[314970892,1708707037953,-500.0,0.00019178,2]
[314970893,1708707037963,-500.0,0.00019178,2]
[314970894,1708707037972,-502.42020174,0.00019178,2]
[314970895,1708707037981,-500.0,0.00019178,2]
[314970896,1708707037990,-500.0,0.00019178,2]
[314970897,1708707038001,-500.0,0.00019178,2]
[314970898,1708707038010,-859.67,0.00019178,2]
[314970899,1708707038020,-500.0,0.00019178,2]
[314970900,1708707038029,-500.0,0.00019178,2]
[314970901,1708707038039,-500.0,0.00019178,2]
[314970902,1708707038048,-501.04178024,0.00019178,2]
[314970903,1708707038057,-500.0,0.00019178,2]
[314970904,1708707038066,-614.95785219,0.00019178,2]
[314970905,1708707038075,-500.0,0.00019178,2]
[314970906,1708707038084,-500.0,0.00019178,2]
[314970907,1708707038094,-500.0,0.00019178,2]
[314970908,1708707038104,-500.0,0.00019178,2]
[314970909,1708707038114,-500.50799428,0.00019178,2]
[314970910,1708707038123,-500.0,0.00019178,2]
[314970911,1708707038272,-500.0,0.00019178,2]
[314970912,1708707038283,-500.0,0.00019178,2]
[314970913,1708707038292,-500.0,0.00019178,2]
[314970914,1708707038302,-500.0,0.00019178,2]
[314970915,1708707038311,-500.44554136,0.00019178,2]
[314970916,1708707038321,-500.0,0.00019178,2]
[314970917,1708707038330,-500.0,0.00019178,2]
[314970918,1708707038339,-417.59276965,0.00019178,2]
[314970919,1708707038349,-500.0,0.00019178,2]
[314970920,1708707038359,-500.0,0.00019178,2]
[314970921,1708707038368,-500.0,0.00019178,2]
[314970922,1708707038378,-500.0,0.00019178,2]
[314970923,1708707038387,-500.0,0.00019178,2]
[314970924,1708707038397,-500.0,0.00019178,2]
[314970925,1708707038407,-500.0,0.00019178,2]
[314970926,1708707038416,-500.60919169,0.00019178,2]
[314970927,1708707038425,-500.41343507,0.00019178,2]
[314970928,1708707038434,-500.0,0.00019178,2]
[314970929,1708707038444,-509.07,0.00019178,2]
[314970930,1708707038453,-500.0,0.00019178,2]
[314970931,1708707038462,-274.05284249,0.00019178,2]
[314970932,1708707038472,-500.0,0.00019178,2]
[314970933,1708707038482,-500.0,0.00019178,2]
[314970934,1708707038491,-500.0,0.00019178,2]
[314970935,1708707038501,-500.0,0.00019178,2]
[314970936,1708707038510,-500.0,0.00019178,2]
[314970937,1708707038519,-500.0,0.00019178,2]
[314970938,1708707038529,-500.0,0.00019178,2]
[314970939,1708707038539,-625.34,0.00019178,2]
[314970940,1708707038548,-500.0,0.00019178,2]
[314970941,1708707038557,-500.0,0.00019178,2]
[314970942,1708707038566,-1015.61,0.00019178,2]
[314970943,1708707038576,-500.0,0.00019178,2]
[314970944,1708707038585,-510.27370218,0.00019178,2]
[314970945,1708707038594,-630.81,0.00019178,2]
[314970946,1708707038603,-500.0,0.00019178,2]
[314970947,1708707038613,-500.0,0.00019178,2]
[314970948,1708707038622,-500.0,0.00019178,2]
[314970949,1708707038631,-500.0,0.00019178,2]
[314970950,1708707038640,-1031.62,0.00019178,2]
[314970951,1708707038649,-500.0,0.00019178,2]
[314970952,1708707038659,-500.0,0.00019178,2]
[314970953,1708707038668,-2751.9,0.00019178,2]
[314970954,1708707038677,-500.0,0.00019178,2]
[314970955,1708707038686,-500.0,0.00019178,2]
[314970956,1708707038695,-1378.12,0.00019178,2]
[314970957,1708707038703,-4362.34,0.00019178,2]
[314970958,1708707038712,-500.0,0.00019178,2]
[314970959,1708707038721,-500.0,0.00019178,2]
[314970960,1708707038731,-5531.33,0.00019178,2]
[314970961,1708707038740,-942.1,0.00019178,2]
[314970962,1708707038751,-500.0,0.00019178,2]
[314970963,1708707038760,-1730.5,0.00019178,2]
[314970964,1708707038770,-581.89,0.00019178,2]
[314970965,1708707038779,-500.0,0.00019178,2]
[314970966,1708707038788,-1658.11,0.00019178,2]
[314970967,1708707038798,-500.0,0.00019178,2]
[314970968,1708707038807,-500.0,0.00019178,2]
[314970969,1708707038816,-500.0,0.00019178,2]
[314970970,1708707038825,-1169.16,0.00019178,2]
[314970971,1708707038834,-682.63,0.00019178,2]
[314970972,1708707038843,-500.0,0.00019178,2]
[314970973,1708707038852,-1708.97,0.00019178,2]
[314970974,1708707038862,-500.0,0.00019178,2]
[314970975,1708707038871,-1219.46,0.00019178,2]
[314970976,1708707038880,-500.0,0.00019178,2]
[314970977,1708707038890,-13658.97,0.00019178,2]
[314970978,1708707038899,-500.49380648,0.00019178,2]
[314970979,1708707038908,-500.0,0.00019178,2]
[314970980,1708707038918,-500.0,0.00019178,2]
[314970981,1708707038927,-500.0,0.00019178,2]
[314970982,1708707038936,-500.0,0.00019178,2]
[314970983,1708707038945,-1099.28,0.00019178,2]
[314970984,1708707038954,-500.0,0.00019178,2]
[314970985,1708707038963,-500.0,0.00019178,2]
[314970986,1708707038973,-500.0,0.00019178,2]
[314970987,1708707038983,-251.4126859,0.00019178,2]
[314971000,1708707041036,-155.0310062,0.00018485,2]
[314971001,1708707041046,-173.11964371,0.00019178,2]
[314971002,1708707041109,-255.11959156,0.00019178,2]
[314971014,1708707042909,-729.16807883,0.00019178,2]
[314971015,1708707042918,-502.17446308,0.00019178,2]
[314971016,1708707042928,-181.96161802,0.00019178,2]
[314971017,1708707042937,-2699.48999254,0.00019178,2]
[314971018,1708707042949,-4420.78000746,0.00019178,2]
[314971019,1708707042959,-171.90224254,0.00019178,2]
[314971051,1708707863836,300.0,0.0002,8]
[314971058,1708708084306,639.93763963,0.00018099,2]
[314971114,1708708232006,-639.93763963,0.00018105,2]
[314971116,1708708232015,-155.0356582,0.00018106,2]
[314971118,1708708232024,-176.6995601,0.00018109,2]
[314971120,1708708232034,-798.84591088,0.00018888,2]
[314971124,1708708232065,-187.2955407,0.00018888,2]
[314971126,1708708232074,-498.53694531,0.000189,2]
[314971128,1708708232083,-93.53750808,0.00018952,2]
[314971201,1708708241158,-1206.65221703,0.00018952,2]
[314971202,1708708241167,-168.76608345,0.00019078,2]
[314971203,1708708241176,-216.26,0.00019168,3]
[314971204,1708708241185,-168.76608343,0.00019169,2]
[314971205,1708708241194,-500.0,0.00019178,2]
[314971206,1708708241204,-500.0,0.00019178,2]
[314971207,1708708241213,-500.0,0.00019178,2]
[314971208,1708708241222,-500.0,0.00019178,2]
[314971209,1708708241232,-612.17,0.00019178,2]
[314971210,1708708241241,-500.0,0.00019178,2]
[314971211,1708708241250,-315.93336313,0.00019178,2]
[314971212,1708708241263,-184.06663687,0.00019178,2]
[314971213,1708708241272,-500.0,0.00019178,2]
[314971214,1708708241281,-500.0,0.00019178,2]
[314971215,1708708241290,-500.0,0.00019178,2]
[314971216,1708708241299,-500.0,0.00019178,2]
[314971217,1708708241310,-500.0,0.00019178,2]
[314971218,1708708241318,-500.0,0.00019178,2]
[314971219,1708708241327,-500.0,0.00019178,2]
[314971220,1708708241337,-500.0,0.00019178,2]
[314971221,1708708241346,-163.97744344,0.00019178,2]
[314971222,1708708241355,-507.85562796,0.00019178,2]
[314971223,1708708241364,-151.47489492,0.00019178,2]
[314971224,1708708241375,-348.52510508,0.00019178,2]
[314971225,1708708241384,-10.97589496,0.00019178,2]
[314971226,1708708241396,-489.02410504,0.00019178,2]
[314971227,1708708241405,-500.0,0.00019178,2]
[314971228,1708708241415,-12.22661037,0.00019178,2]
[314971229,1708708241427,-261.1484091,0.00019178,2]
[314971230,1708708241438,-226.62498053,0.00019178,2]
[314971231,1708708241447,-200.0,0.00019178,2]
[314971232,1708708241456,-643.25690314,0.00019178,2]
[314971257,1708708245223,-648.79,0.00019168,3]
[314971259,1708708245232,-7.72309686,0.00019178,2]
[314971260,1708708245241,-434.18077611,0.00019178,2]
[314971263,1708708245251,-1099.23,0.00019178,2]
[314971264,1708708245261,-500.0,0.00019178,2]
[314971267,1708708245271,-500.0,0.00019178,2]
[314971269,1708708245280,-500.0,0.00019178,2]
[314971270,1708708245289,-500.0,0.00019178,2]
[314971272,1708708245298,-324.8875442,0.00019178,2]
[314971275,1708708245310,-175.1124558,0.00019178,2]
[314971277,1708708245319,-500.0,0.00019178,2]
[314971279,1708708245328,-500.0,0.00019178,2]
[314971281,1708708245337,-500.0,0.00019178,2]
[314971283,1708708245346,-527.74,0.00019178,2]
[314971285,1708708245355,-108.4518966,0.00019178,2]
[314971287,1708708245366,-391.5481034,0.00019178,2]
[314971289,1708708245375,-683.5,0.00019178,2]
[314971291,1708708245384,-332.951896,0.00019178,2]
[314971310,1708708246068,-167.048104,0.00019178,2]
[314971311,1708708246077,-500.0,0.00019178,2]
[314971312,1708708246086,-1091.39,0.00019178,2]
[314971313,1708708246095,-635.55,0.00019178,2]
[314971314,1708708246105,-500.0,0.00019178,2]
[314971315,1708708246114,-374.58,0.00019178,2]
[314971316,1708708246123,-500.0,0.00019178,2]
[314971317,1708708246132,-500.0,0.00019178,2]
[314971318,1708708246141,-500.0,0.00019178,2]
[314971319,1708708246150,-1210.55,0.00019178,2]
[314971320,1708708246160,-500.0,0.00019178,2]
[314971321,1708708246169,-500.0,0.00019178,2]
[314971322,1708708246178,-500.0,0.00019178,2]
[314971323,1708708246187,-2765.43,0.00019178,2]
[314971324,1708708246196,-500.0,0.00019178,2]
[314971325,1708708246205,-1138.77,0.00019178,2]
[314971326,1708708246214,-591.87724325,0.00019178,2]
[314973868,1708709432278,-155.00775039,0.00018882,2]
[314973870,1708709432288,-639.93763963,0.00018883,2]
[314973872,1708709432299,-168.76608343,0.00019078,2]
[314973874,1708709432309,-180.21,0.00019168,3]
[314973876,1708709432320,-540.65,0.00019168,3]
[314973878,1708709432331,-500.0,0.00019178,2]
[314973880,1708709432342,-500.0,0.00019178,2]
[314973881,1708709432353,-1053.43,0.00019178,2]
[314973882,1708709432364,-500.0,0.00019178,2]
[314973883,1708709432375,-500.0,0.00019178,2]
[314973884,1708709432385,-500.0,0.00019178,2]
[314973885,1708709432395,-500.0,0.00019178,2]
[314973886,1708709432405,-721.16,0.00019178,2]
[314973887,1708709432416,-500.0,0.00019178,2]
[314973888,1708709432427,-500.0,0.00019178,2]
[314973889,1708709432436,-500.0,0.00019178,2]
[314973890,1708709432447,-500.0,0.00019178,2]
[314973891,1708709432457,-500.0,0.00019178,2]
[314973892,1708709432467,-1801.6,0.00019178,2]
[314973893,1708709432477,-500.0,0.00019178,2]
[314973894,1708709432486,-500.0,0.00019178,2]
[314973895,1708709432496,-500.0,0.00019178,2]
[314973896,1708709432506,-582.12796174,0.00019178,2]
[314973897,1708709432516,-500.0,0.00019178,2]
[314973898,1708709432525,-500.0,0.00019178,2]
[314973899,1708709432536,-151.0,0.00019178,2]
[314973900,1708709432546,-500.0,0.00019178,2]
[314973901,1708709432556,-500.0,0.00019178,2]
[314973902,1708709432567,-500.0,0.00019178,2]
[314973903,1708709432578,-500.0,0.00019178,2]
[314973904,1708709432588,-500.0,0.00019178,2]
[314973905,1708709432599,-500.0,0.00019178,2]
[314973906,1708709432608,-544.37,0.00019178,2]
[314973907,1708709432618,-500.0,0.00019178,2]
[314973908,1708709432628,-500.0,0.00019178,2]
[314973909,1708709432639,-903.86,0.00019178,2]
[314973910,1708709432649,-500.0,0.00019178,2]
[314973911,1708709432658,-500.0,0.00019178,2]
[314973912,1708709432668,-500.0,0.00019178,2]
[314973913,1708709432677,-500.0,0.00019178,2]
[314973914,1708709432686,-500.0,0.00019178,2]
[314973915,1708709432695,-500.0,0.00019178,2]
[314973916,1708709432704,-500.0,0.00019178,2]
[314973917,1708709432713,-500.0,0.00019178,2]
[314973918,1708709432724,-500.0,0.00019178,2]
[314973919,1708709432734,-452.66936933,0.00019178,2]
[314973920,1708709432743,-500.0,0.00019178,2]
[314973921,1708709432752,-500.0,0.00019178,2]
[314973922,1708709432762,-360.71997877,0.00019178,2]
[314973923,1708709432772,-1091.46,0.00019178,2]
[314973924,1708709432782,-500.0,0.00019178,2]
[314973925,1708709432792,-500.0,0.00019178,2]
[314973926,1708709432803,-500.0,0.00019178,2]
[314973927,1708709432814,-500.0,0.00019178,2]
[314973928,1708709432824,-500.0,0.00019178,2]
[314973929,1708709432834,-609.07,0.00019178,2]
[314973930,1708709432845,-500.0,0.00019178,2]
[314973931,1708709432854,-500.0,0.00019178,2]
[314973932,1708709432864,-500.0,0.00019178,2]
[314973933,1708709432873,-500.0,0.00019178,2]
[314973934,1708709432883,-500.0,0.00019178,2]
[314973935,1708709432892,-500.0,0.00019178,2]
[314973936,1708709432903,-500.0,0.00019178,2]
[314973937,1708709432913,-500.0,0.00019178,2]
[314973938,1708709432925,-564.38311754,0.00019178,2]
[314973939,1708709432935,-544.03141441,0.00019178,2]
[314973940,1708709432944,-640.479474,0.00019178,2]
[314973941,1708709432953,-500.0,0.00019178,2]
[314973942,1708709432963,-500.0,0.00019178,2]
[314973943,1708709432973,-14395.21,0.00019178,2]
[314973944,1708709432983,-500.0,0.00019178,2]
[314973945,1708709432992,-717.67,0.00019178,2]
[314973946,1708709433003,-500.0,0.00019178,2]
[314973947,1708709433013,-500.0,0.00019178,2]
[314973948,1708709433023,-500.0,0.00019178,2]
[314973949,1708709433033,-500.0,0.00019178,2]
[314973950,1708709433042,-500.0,0.00019178,2]
[314973951,1708709433051,-500.0,0.00019178,2]
[314973952,1708709433060,-500.0,0.00019178,2]
[314973953,1708709433069,-500.0,0.00019178,2]
[314973954,1708709433078,-500.39052972,0.00019178,2]
[314973955,1708709433089,-3729.66189517,0.00019178,2]
[314973980,1708709439295,-298.62810483,0.00019178,2]
[314973982,1708709439304,-500.0,0.00019178,2]
[314973996,1708709439424,-2650.21,0.00019178,2]
[314973998,1708709439434,-500.0,0.00019178,2]
[314974000,1708709439443,-500.0,0.00019178,2]
[314974002,1708709439452,-500.0,0.00019178,2]
[314974004,1708709439461,-552.1985046,0.00019178,2]
[314974223,1708709441529,-359.76950152,0.00019178,2]
[314974225,1708709441541,-546.78199388,0.00019178,2]
[314974227,1708709441550,-271.2184854,0.00019178,2]
[314974229,1708709441559,-180.07645479,0.00019178,2]
[314974231,1708709441572,-319.92354521,0.00019178,2]
[314974233,1708709441581,-1816.04,0.00019178,2]
[314974235,1708709441591,-500.0,0.00019178,2]
[314974237,1708709441600,-500.0,0.00019178,2]
[314974239,1708709441610,-500.0,0.00019178,2]
[314974241,1708709441619,-975.03,0.00019178,2]
[314974243,1708709441629,-500.0,0.00019178,2]
[314974245,1708709441638,-603.8,0.00019178,2]
[314974247,1708709441648,-500.0,0.00019178,2]
[314974249,1708709441657,-1000.0,0.00019178,2]
[314974251,1708709441667,-530.59920693,0.00019178,2]
[314974253,1708709441676,-1642.2,0.00019178,2]
[314974255,1708709441684,-500.0,0.00019178,2]
[314974257,1708709441693,-500.0,0.00019178,2]
[314974259,1708709441702,-330.43871935,0.00019178,2]
[314974261,1708709441710,-1205.84,0.00019178,2]
[314974263,1708709441719,-500.0,0.00019178,2]
[314974265,1708709441728,-500.0,0.00019178,2]
[314974267,1708709441737,-500.23960105,0.00019178,2]
[314974269,1708709441746,-603.04682404,0.00019178,2]
[314974271,1708709441755,-500.0,0.00019178,2]
[314974273,1708709441764,-500.0,0.00019178,2]
[314974275,1708709441773,-1695.71,0.00019178,2]
[314974277,1708709441782,-1234.76,0.00019178,2]
[314974279,1708709441792,-500.0,0.00019178,2]
[314974281,1708709441801,-500.0,0.00019178,2]
[314974283,1708709441810,-500.0,0.00019178,2]
[314974285,1708709441820,-500.0,0.00019178,2]
[314974287,1708709441829,-500.0,0.00019178,2]
[314974289,1708709441838,-1093.64,0.00019178,2]
[314974291,1708709441847,-500.0,0.00019178,2]
[314974292,1708709441857,-500.0,0.00019178,2]
[314974294,1708709441866,-236.5465028,0.00019178,2]
[314974296,1708709441875,-500.0,0.00019178,2]
[314974298,1708709441885,-13771.79,0.00019178,2]
[314974300,1708709441894,-500.0,0.00019178,2]
[314974302,1708709441903,-500.0,0.00019178,2]
[314974304,1708709441915,-500.0,0.00019178,2]
[314974306,1708709441925,-7490.43,0.00019178,2]
[314974309,1708709441938,-617.42670533,0.00019178,2]
[314974311,1708709441947,-1391.34,0.00019178,2]
[314974312,1708709441957,-500.0,0.00019178,2]
[314974314,1708709441967,-500.0,0.00019178,2]
[314974316,1708709441977,-500.0,0.00019178,2]
[314974318,1708709441986,-452.95165719,0.00019178,2]
[314974628,1708709444719,-47.92671371,0.00019178,2]
[314974630,1708709444730,-1082.07328639,0.00019178,2]
[314974636,1708709444773,-1252.19671361,0.00019178,2]
[314974638,1708709444783,-500.0,0.00019178,2]
[314974640,1708709444793,-500.0,0.00019178,2]
[314974642,1708709444803,-500.0,0.00019178,2]
[314974644,1708709444813,-623.86,0.00019178,2]
[314974646,1708709444823,-500.0,0.00019178,2]
[314974648,1708709444832,-500.0,0.00019178,2]
[314974650,1708709444842,-500.0,0.00019178,2]
[314974652,1708709444853,-500.0,0.00019178,2]
[314974654,1708709444864,-558.03,0.00019178,2]
[314974656,1708709444874,-500.0,0.00019178,2]
[314974659,1708709444883,-1821.8,0.00019178,2]
[314974660,1708709444893,-1222.17,0.00019178,2]
[314974663,1708709444903,-328.09775746,0.00019178,2]
[314974665,1708709444912,-1294.01,0.00019178,2]
[314974667,1708709444925,-500.0,0.00019178,2]
[314974669,1708709444936,-881.59,0.00019178,2]
[314974671,1708709444946,-1129.69,0.00019178,2]
[314974673,1708709444956,-500.0,0.00019178,2]
[314974674,1708709444965,-500.0,0.00019178,2]
[314974676,1708709444976,-500.0,0.00019178,2]
[314974679,1708709444986,-4551.45,0.00019178,2]
[314974681,1708709444995,-500.0,0.00019178,2]
[314974684,1708709445017,-500.0,0.00019178,2]
[314974686,1708709445032,-5519.15,0.00019178,2]
[314974688,1708709445045,-13795.41,0.00019178,2]
[314974691,1708709445058,-170.243416,0.00019178,2]
[314974693,1708709445071,-166.666666,0.00019178,2]
[314974696,1708709445085,-500.0,0.00019202,2]
[314974698,1708709445096,-168.76608343,0.00019352,2]
[314974700,1708709445108,-882.59637173,0.00019352,2]
[314974702,1708709445119,-631.97333427,0.00019451,2]
[314974705,1708709445132,-500.0,0.00019452,2]
[314974707,1708709445144,-1053.43,0.00019452,2]
[314974709,1708709445157,-175.89272658,0.00019452,2]
[314974711,1708709445169,-500.0,0.00019452,2]
[314974714,1708709445181,-500.0,0.00019452,2]
[314974716,1708709445194,-500.0,0.00019452,2]
[314974718,1708709445206,-721.16,0.00019452,2]
[314974720,1708709445223,-500.0,0.00019452,2]
[314974721,1708709445235,-500.0,0.00019452,2]
[314974722,1708709445245,-500.0,0.00019452,2]
[314974723,1708709445255,-544.37,0.00019452,2]
[314974724,1708709445264,-903.86,0.00019452,2]
[314974725,1708709445276,-500.0,0.00019452,2]
[314974726,1708709445287,-500.0,0.00019452,2]
[314974727,1708709445297,-1091.46,0.00019452,2]
[314974728,1708709445308,-500.0,0.00019452,2]
[314974729,1708709445318,-609.07,0.00019452,2]
[314974731,1708709445329,-638.31525657,0.00019452,2]
[314974733,1708709445340,-500.0,0.00019452,2]
[314974735,1708709445353,-717.67,0.00019452,2]
[314974737,1708709445364,-500.0,0.00019452,2]
[314974739,1708709445376,-500.0,0.00019452,2]
[314974742,1708709445393,-500.0,0.00019452,2]
[314974744,1708709445405,-618.62,0.00019452,2]
[314974746,1708709445415,-2650.21,0.00019452,2]
[314974748,1708709445425,-569.28,0.00019452,2]
[314974751,1708709445434,-1458.75,0.00019452,2]
[314974753,1708709445445,-1816.04,0.00019452,2]
[314974755,1708709445458,-975.03,0.00019452,2]
[314974758,1708709445471,-603.8,0.00019452,2]
[314974760,1708709445481,-1642.2,0.00019452,2]
[314974762,1708709445492,-500.0,0.00019452,2]
[314974764,1708709445503,-1205.84,0.00019452,2]
[314974766,1708709445515,-500.0,0.00019452,2]
[314974769,1708709445527,-500.0,0.00019452,2]
[314974771,1708709445539,-381.36631178,0.00019452,2]
[314974773,1708709445548,-1695.71,0.00019452,2]
[314974775,1708709445559,-1234.76,0.00019452,2]
[314974777,1708709445571,-242.44871713,0.00019452,2]
[314974779,1708709445581,-1093.64,0.00019452,2]
[314974782,1708709445593,-500.0,0.00019452,2]
[314974784,1708709445606,-13771.79,0.00019452,2]
[314974786,1708709445618,-500.0,0.00019452,2]
[314974789,1708709445630,-500.0,0.00019452,2]
[314974791,1708709445642,-7490.43,0.00019452,2]
[314974793,1708709445654,-1391.34,0.00019452,2]
[314974795,1708709445665,-2334.27,0.00019452,2]
[314974797,1708709445676,-623.86,0.00019452,2]
[314974800,1708709445687,-500.0,0.00019452,2]
[314974802,1708709445696,-500.0,0.00019452,2]
[314974804,1708709445706,-1821.8,0.00019452,2]
[314974806,1708709445716,-1222.17,0.00019452,2]
[314974808,1708709445725,-1294.01,0.00019452,2]
[314974810,1708709445736,-500.0,0.00019452,2]
[314974813,1708709445747,-881.59,0.00019452,2]
[314974817,1708709445757,-1129.69,0.00019452,2]
[314974819,1708709445768,-500.0,0.00019452,2]
[314974821,1708709445779,-174.59263485,0.00019452,2]
[314974824,1708709445790,-4551.45,0.00019452,2]
[314974826,1708709445801,-645.78,0.00019452,2]
[314974828,1708709445813,-5519.15,0.00019452,2]
[314974830,1708709445825,-13795.41,0.00019452,2]
[314974832,1708709445835,-300.0,0.00019456,2]
[314974835,1708709445845,-2955.99963816,0.00019462,2]
[314974837,1708709445857,-205.72416277,0.00019466,2]
[314974839,1708709445867,-205.72416277,0.00019471,2]
[314974841,1708709445878,-205.72416277,0.00019493,2]
[314974843,1708709445888,-2955.99963816,0.00019497,2]
[314974845,1708709445898,-2955.99963816,0.000195,2]
[314974847,1708709445908,-153.1812561,0.000195,2]
[314974849,1708709445918,-166.666666,0.00019627,2]
[314974852,1708709445931,-2229.96463929,0.000197,2]
[314974854,1708709445941,-2229.96463929,0.000197,2]
[314974856,1708709445951,-2229.96463929,0.000197,2]
[314974858,1708709445961,-155.19542102,0.000197,2]
[314974860,1708709445975,-155.19542102,0.000197,2]
[314974862,1708709445986,-155.19542102,0.000197,2]
[314974865,1708709445997,-1053.43,0.00019726,2]
[314974867,1708709446009,-500.0,0.00019726,2]
[314974869,1708709446019,-721.16,0.00019726,2]
[314974871,1708709446030,-455.72,0.00019726,2]
[314974873,1708709446041,-500.0,0.00019726,2]
[314974875,1708709446053,-544.37,0.00019726,2]
[314974877,1708709446064,-903.86,0.00019726,2]
[314974880,1708709446075,-156.09,0.00019726,2]
[314974882,1708709446086,-1091.46,0.00019726,2]
[314974884,1708709446097,-500.0,0.00019726,2]
[314974886,1708709446111,-609.07,0.00019726,2]
[314974888,1708709446121,-500.0,0.00019726,2]
[314974890,1708709446132,-717.67,0.00019726,2]
[314974892,1708709446143,-500.0,0.00019726,2]
[314974894,1708709446154,-380.181693,0.00019726,2]
[314974897,1708709446165,-500.0,0.00019726,2]
[314974899,1708709446175,-2650.21,0.00019726,2]
[314974901,1708709446186,-1458.75,0.00019726,2]
[314974903,1708709446196,-1816.04,0.00019726,2]
[314974905,1708709446209,-975.03,0.00019726,2]
[314974907,1708709446219,-603.8,0.00019726,2]
[314974910,1708709446230,-1642.2,0.00019726,2]
[314974912,1708709446242,-1205.84,0.00019726,2]
[314974914,1708709446252,-500.0,0.00019726,2]